[Event "***Titled Tuesday 3|2 Blitz"]
[Site "Chess.com"]
[Date "2017.02.07"]
[Round "7"]
[White "Maitreia"]
[Black "maciek_92"]
[Result "0-1"]
[WhiteElo "2482"]
[BlackElo "2578"]
[TimeControl "180+2"]
[EndTime "14:42:04 PST"]
[Termination "maciek_92 won on time"]

1. c4 {[%clk 0:03:02]} 1... e5 {[%clk 0:03:00]} 2. g3 {[%clk 0:03:00.8]} 2...
Nc6 {[%clk 0:03:00.4]} 3. Bg2 {[%clk 0:03:02.2]} 3... Bc5 {[%clk 0:03:01.8]} 4.
Nc3 {[%clk 0:03:02.8]} 4... Nge7 {[%clk 0:02:58.5]} 5. Nf3 {[%clk 0:03:03.5]}
5... d6 {[%clk 0:02:57.5]} 6. O-O {[%clk 0:03:04.2]} 6... O-O {[%clk 0:02:57.8]}
7. d3 {[%clk 0:03:02.4]} 7... a6 {[%clk 0:02:51.5]} 8. a3 {[%clk 0:03:03.2]}
8... h6 {[%clk 0:02:52.1]} 9. b4 {[%clk 0:03:04.2]} 9... Ba7 {[%clk 0:02:52]}
10. Bb2 {[%clk 0:03:05.6]} 10... Be6 {[%clk 0:02:48.9]} 11. e3 {[%clk
0:03:05.1]} 11... Rb8 {[%clk 0:02:45.2]} 12. d4 {[%clk 0:02:54.3]} 12... exd4
{[%clk 0:02:38.9]} 13. exd4 {[%clk 0:02:56.2]} 13... Bxc4 {[%clk 0:02:39.5]} 14.
Re1 {[%clk 0:02:54.6]} 14... Nd5 {[%clk 0:02:37.4]} 15. Ne4 {[%clk 0:02:48.3]}
15... Nde7 {[%clk 0:02:11.6]} 16. d5 {[%clk 0:02:43.5]} 16... Bxd5 {[%clk
0:02:08.8]} 17. Nh4 {[%clk 0:02:41.5]} 17... Bxe4 {[%clk 0:01:52.2]} 18. Bxe4
{[%clk 0:02:34.8]} 18... Qd7 {[%clk 0:01:52.2]} 19. Bc2 {[%clk 0:02:24.8]} 19...
Rbe8 {[%clk 0:01:43.7]} 20. Qd3 {[%clk 0:02:25.6]} 20... f5 {[%clk 0:01:43.6]}
21. Rad1 {[%clk 0:02:19.5]} 21... d5 {[%clk 0:01:29]} 22. a4 {[%clk 0:02:11.2]}
22... d4 {[%clk 0:01:25.3]} 23. b5 {[%clk 0:02:09.8]} 23... axb5 {[%clk
0:01:23.9]} 24. axb5 {[%clk 0:02:11.7]} 24... Nb4 {[%clk 0:01:24]} 25. Qb3+
{[%clk 0:02:12.1]} 25... Nbd5 {[%clk 0:01:24.1]} 26. Bxd4 {[%clk 0:02:08.7]}
26... Bxd4 {[%clk 0:01:25.6]} 27. Rxd4 {[%clk 0:02:10.6]} 27... c6 {[%clk
0:01:23]} 28. Red1 {[%clk 0:01:55.8]} 28... Qe6 {[%clk 0:01:21.7]} 29. bxc6
{[%clk 0:01:48.3]} 29... bxc6 {[%clk 0:01:22.2]} 30. Qc4 {[%clk 0:01:45.8]}
30... Ng6 {[%clk 0:01:15.6]} 31. Nxf5 {[%clk 0:01:21.1]} 31... Rxf5 {[%clk
0:01:12.2]} 32. Bxf5 {[%clk 0:01:23]} 32... Qxf5 {[%clk 0:01:13.6]} 33. Qxc6
{[%clk 0:01:24.6]} 33... Nf6 {[%clk 0:01:14.7]} 34. Rd8 {[%clk 0:01:19]} 34...
Rxd8 {[%clk 0:01:12.7]} 35. Rxd8+ {[%clk 0:01:20.9]} 35... Kh7 {[%clk 0:01:14]}
36. Qa8 {[%clk 0:01:06.8]} 36... Ne5 {[%clk 0:01:11.7]} 37. Rh8+ {[%clk
0:00:55.5]} 37... Kg6 {[%clk 0:01:11.4]} 38. Rf8 {[%clk 0:00:56.3]} 38... Nf3+
{[%clk 0:00:53.8]} 39. Kg2 {[%clk 0:00:55.6]} 39... Ne1+ {[%clk 0:00:50]} 40.
Kf1 {[%clk 0:00:56.5]} 40... Nd3 {[%clk 0:00:37.3]} 41. Qa2 {[%clk 0:00:57.3]}
41... Qe4 {[%clk 0:00:33.5]} 42. Kg1 {[%clk 0:00:19.4]} 42... Ne5 {[%clk
0:00:28.1]} 43. Rb8 {[%clk 0:00:08.1]} 43... Kh5 {[%clk 0:00:20.8]} 44. Rb5
{[%clk 0:00:05]} 44... g5 {[%clk 0:00:15.7]} 45. Qb1 {[%clk 0:00:04.9]} 45...
Nf3+ {[%clk 0:00:14.2]} 0-1

[Event "***Titled Tuesday 3|2 Blitz"]
[Site "Chess.com"]
[Date "2017.02.07"]
[Round "7"]
[White "Vegan4future"]
[Black "JeremDev"]
[Result "0-1"]
[WhiteElo "2412"]
[BlackElo "2169"]
[TimeControl "180+2"]
[EndTime "14:42:08 PST"]
[Termination "JeremDev won by resignation"]

1. Nc3 {[%clk 0:03:02]} 1... c5 {[%clk 0:03:00.3]} 2. e4 {[%clk 0:02:59.8]} 2...
Nc6 {[%clk 0:03:00.7]} 3. Bc4 {[%clk 0:02:58.8]} 3... e6 {[%clk 0:02:53.2]} 4.
d3 {[%clk 0:02:56.7]} 4... Nf6 {[%clk 0:02:52.6]} 5. Bg5 {[%clk 0:02:57.6]} 5...
Be7 {[%clk 0:02:53.3]} 6. Nf3 {[%clk 0:02:37]} 6... d6 {[%clk 0:02:53.1]} 7. O-O
{[%clk 0:02:30.1]} 7... O-O {[%clk 0:02:46.5]} 8. a3 {[%clk 0:02:31.1]} 8... a6
{[%clk 0:02:42.2]} 9. Ba2 {[%clk 0:02:25.7]} 9... b5 {[%clk 0:02:42.5]} 10. Ne2
{[%clk 0:02:26.1]} 10... e5 {[%clk 0:02:30.8]} 11. h3 {[%clk 0:02:25.7]} 11...
Be6 {[%clk 0:02:31.6]} 12. Ng3 {[%clk 0:02:20.3]} 12... Bxa2 {[%clk 0:02:09.9]}
13. Rxa2 {[%clk 0:02:21]} 13... g6 {[%clk 0:02:11.2]} 14. Ra1 {[%clk 0:02:12.2]}
14... Nd7 {[%clk 0:02:11.8]} 15. Bh6 {[%clk 0:02:10.3]} 15... Re8 {[%clk
0:02:12.9]} 16. c3 {[%clk 0:02:07.7]} 16... Bf8 {[%clk 0:02:13]} 17. Qd2 {[%clk
0:02:09.3]} 17... Bxh6 {[%clk 0:02:07.1]} 18. Qxh6 {[%clk 0:02:11.2]} 18... Qf6
{[%clk 0:02:07.4]} 19. b4 {[%clk 0:01:25.9]} 19... Qg7 {[%clk 0:02:03.3]} 20.
Qd2 {[%clk 0:01:20.3]} 20... Nf8 {[%clk 0:01:52]} 21. Nh2 {[%clk 0:01:15.3]}
21... Ne6 {[%clk 0:01:50.2]} 22. Ne2 {[%clk 0:01:14.1]} 22... f5 {[%clk
0:01:43.4]} 23. exf5 {[%clk 0:01:15]} 23... gxf5 {[%clk 0:01:44.2]} 24. f4
{[%clk 0:01:14.8]} 24... Rf8 {[%clk 0:00:59.4]} 25. Rf3 {[%clk 0:01:13.2]} 25...
Kh8 {[%clk 0:01:00.5]} 26. Rg3 {[%clk 0:01:13.9]} 26... Qh6 {[%clk 0:00:58.8]}
27. Rf1 {[%clk 0:01:13.1]} 27... a5 {[%clk 0:00:53.7]} 28. bxc5 {[%clk
0:01:10.7]} 28... dxc5 {[%clk 0:00:52.6]} 29. Rgf3 {[%clk 0:00:54]} 29... Rad8
{[%clk 0:00:52.6]} 30. Qb2 {[%clk 0:00:52.1]} 30... e4 {[%clk 0:00:44.9]} 31.
dxe4 {[%clk 0:00:49.8]} 31... fxe4 {[%clk 0:00:46.1]} 32. Rg3 {[%clk 0:00:41]}
32... Nc7 {[%clk 0:00:35.1]} 33. c4+ {[%clk 0:00:38]} 33... Nd4 {[%clk
0:00:34.5]} 34. cxb5 {[%clk 0:00:38.2]} 34... Qf6 {[%clk 0:00:34.6]} 35. Ng4
{[%clk 0:00:36.7]} 35... Nf3+ {[%clk 0:00:33]} 36. Rgxf3 {[%clk 0:00:24.4]}
36... Qxb2 {[%clk 0:00:32.9]} 37. R3f2 {[%clk 0:00:25.9]} 37... Qxb5 {[%clk
0:00:31.7]} 38. Ng3 {[%clk 0:00:20.5]} 38... e3 {[%clk 0:00:25.4]} 39. Nxe3
{[%clk 0:00:21.4]} 39... Rd3 {[%clk 0:00:23.3]} 40. Rf3 {[%clk 0:00:21.8]} 40...
c4 {[%clk 0:00:22.8]} 41. Kh2 {[%clk 0:00:19.7]} 41... Qc5 {[%clk 0:00:22.7]}
42. Re1 {[%clk 0:00:21.1]} 42... c3 {[%clk 0:00:22.3]} 43. Ngf1 {[%clk
0:00:22.4]} 43... c2 {[%clk 0:00:22.3]} 44. Rc1 {[%clk 0:00:22.9]} 44... Rc3
{[%clk 0:00:21.5]} 45. f5 {[%clk 0:00:22.6]} 45... Nd5 {[%clk 0:00:18]} 46. Nxd5
{[%clk 0:00:22.4]} 46... Rxf3 {[%clk 0:00:19.1]} 47. gxf3 {[%clk 0:00:23.7]}
47... Qxd5 {[%clk 0:00:20.3]} 48. Rxc2 {[%clk 0:00:25.2]} 48... Qxf5 {[%clk
0:00:21.1]} 49. Rf2 {[%clk 0:00:26.3]} 49... Qf4+ {[%clk 0:00:21.4]} 50. Kh1
{[%clk 0:00:24.7]} 50... Rg8 {[%clk 0:00:22.2]} 51. a4 {[%clk 0:00:20.4]} 51...
Qg5 {[%clk 0:00:21.5]} 0-1

[Event "***Titled Tuesday 3|2 Blitz"]
[Site "Chess.com"]
[Date "2017.02.07"]
[Round "7"]
[White "proxy6"]
[Black "Alliswell998"]
[Result "0-1"]
[WhiteElo "2089"]
[BlackElo "2150"]
[TimeControl "180+2"]
[EndTime "14:42:13 PST"]
[Termination "Alliswell998 won by resignation"]

1. e4 {[%clk 0:03:02]} 1... c5 {[%clk 0:02:57.8]} 2. Nf3 {[%clk 0:03:02]} 2...
d6 {[%clk 0:02:58.7]} 3. d4 {[%clk 0:03:03.4]} 3... cxd4 {[%clk 0:03:00.6]} 4.
Nxd4 {[%clk 0:03:05.3]} 4... Nf6 {[%clk 0:03:01.9]} 5. Nc3 {[%clk 0:03:06.8]}
5... a6 {[%clk 0:03:03]} 6. Be3 {[%clk 0:03:07.5]} 6... e5 {[%clk 0:03:02.2]} 7.
Nb3 {[%clk 0:03:08.9]} 7... Be7 {[%clk 0:03:00.2]} 8. h3 {[%clk 0:03:07.5]} 8...
h5 {[%clk 0:02:52.9]} 9. Be2 {[%clk 0:03:03.6]} 9... Be6 {[%clk 0:02:50.6]} 10.
O-O {[%clk 0:03:04.5]} 10... Nbd7 {[%clk 0:02:47.1]} 11. Kh1 {[%clk 0:02:48.4]}
11... Rc8 {[%clk 0:02:45.4]} 12. f4 {[%clk 0:02:48]} 12... exf4 {[%clk
0:02:40.7]} 13. Bxf4 {[%clk 0:02:42.2]} 13... Ne5 {[%clk 0:02:41]} 14. Nd4
{[%clk 0:02:37.9]} 14... b5 {[%clk 0:02:27.6]} 15. a3 {[%clk 0:02:20.8]} 15...
h4 {[%clk 0:02:11.9]} 16. Nf5 {[%clk 0:02:12.2]} 16... Bxf5 {[%clk 0:02:08.2]}
17. exf5 {[%clk 0:02:14.1]} 17... O-O {[%clk 0:01:57.4]} 18. Qd4 {[%clk
0:01:52.5]} 18... Qc7 {[%clk 0:01:34.9]} 19. Bg5 {[%clk 0:01:28.5]} 19... Qc5
{[%clk 0:01:29.5]} 20. Qxh4 {[%clk 0:01:25]} 20... Rfe8 {[%clk 0:01:12.1]} 21.
Rae1 {[%clk 0:01:15.3]} 21... Qa7 {[%clk 0:00:48.7]} 22. Qg3 {[%clk 0:01:14]}
22... Kf8 {[%clk 0:00:47]} 23. Rf4 {[%clk 0:01:00.9]} 23... Ned7 {[%clk
0:00:42]} 24. Rh4 {[%clk 0:00:59.6]} 24... Ng8 {[%clk 0:00:42.1]} 25. Rh7 {[%clk
0:00:55.5]} 25... Ndf6 {[%clk 0:00:35.8]} 26. Bxf6 {[%clk 0:00:27.4]} 26... Bxf6
{[%clk 0:00:37.7]} 27. Nd5 {[%clk 0:00:21.4]} 27... Be5 {[%clk 0:00:31.4]} 28.
Qg4 {[%clk 0:00:20.4]} 28... Qd4 {[%clk 0:00:22.9]} 29. Qxd4 {[%clk 0:00:20]}
29... Bxd4 {[%clk 0:00:22.6]} 30. Rd1 {[%clk 0:00:09.8]} 30... Rxe2 {[%clk
0:00:19.1]} 31. Rxd4 {[%clk 0:00:10.3]} 31... Rcxc2 {[%clk 0:00:19.6]} 32. Rg4
{[%clk 0:00:11.5]} 32... Rcd2 {[%clk 0:00:14.6]} 33. Nf4 {[%clk 0:00:10.2]}
33... Re1+ {[%clk 0:00:12.3]} 34. Kh2 {[%clk 0:00:11.2]} 34... Nf6 {[%clk
0:00:08.4]} 35. Rgxg7 {[%clk 0:00:11.6]} 35... Nxh7 {[%clk 0:00:09.2]} 36. Rxh7
{[%clk 0:00:12.9]} 36... Ke7 {[%clk 0:00:10.7]} 37. h4 {[%clk 0:00:04.9]} 37...
Kf6 {[%clk 0:00:10.9]} 38. h5 {[%clk 0:00:04.4]} 38... Kxf5 {[%clk 0:00:11.9]}
39. Rxf7+ {[%clk 0:00:05.8]} 39... Kg4 {[%clk 0:00:12.7]} 40. h6 {[%clk
0:00:05.1]} 40... Rdd1 {[%clk 0:00:11.7]} 41. g3 {[%clk 0:00:03]} 41... Rd2+
{[%clk 0:00:10.2]} 42. Ng2 {[%clk 0:00:03.3]} 42... Ree2 {[%clk 0:00:12.1]} 43.
Rg7+ {[%clk 0:00:02.3]} 43... Kf3 {[%clk 0:00:11.1]} 44. Rf7+ {[%clk 0:00:02.9]}
44... Kg4 {[%clk 0:00:11.7]} 45. Rg7+ {[%clk 0:00:03.6]} 45... Kf5 {[%clk
0:00:13.2]} 46. h7 {[%clk 0:00:02.5]} 46... Rxg2+ {[%clk 0:00:13.3]} 47. Kh1
{[%clk 0:00:03.9]} 47... Rh2+ {[%clk 0:00:10.2]} 48. Kg1 {[%clk 0:00:05.4]}
48... Kf6 {[%clk 0:00:11.6]} 0-1

[Event "***Titled Tuesday 3|2 Blitz"]
[Site "Chess.com"]
[Date "2017.02.07"]
[Round "7"]
[White "gmwesley_so"]
[Black "Rikikits"]
[Result "1-0"]
[WhiteElo "2749"]
[BlackElo "2626"]
[TimeControl "180+2"]
[EndTime "14:42:18 PST"]
[Termination "gmwesley_so won on time"]

1. e4 {[%clk 0:03:02]} 1... c5 {[%clk 0:02:59.4]} 2. Nf3 {[%clk 0:03:00.7]} 2...
Nc6 {[%clk 0:03:00.3]} 3. d4 {[%clk 0:02:59.1]} 3... cxd4 {[%clk 0:03:02.2]} 4.
Nxd4 {[%clk 0:03:01]} 4... Nf6 {[%clk 0:03:02.9]} 5. Nc3 {[%clk 0:03:02.5]} 5...
e5 {[%clk 0:03:04]} 6. Ndb5 {[%clk 0:03:03.8]} 6... d6 {[%clk 0:03:05.1]} 7. Bg5
{[%clk 0:03:05.4]} 7... a6 {[%clk 0:03:05.4]} 8. Na3 {[%clk 0:03:07.1]} 8... b5
{[%clk 0:03:06.8]} 9. Nd5 {[%clk 0:03:08.8]} 9... Be7 {[%clk 0:03:08.1]} 10.
Bxf6 {[%clk 0:03:10.3]} 10... Bxf6 {[%clk 0:03:10]} 11. c3 {[%clk 0:03:12.2]}
11... O-O {[%clk 0:03:06.8]} 12. Nc2 {[%clk 0:03:13]} 12... Bg5 {[%clk
0:03:05.7]} 13. a4 {[%clk 0:03:14]} 13... bxa4 {[%clk 0:03:06.3]} 14. Rxa4
{[%clk 0:03:15.9]} 14... Ne7 {[%clk 0:03:06.9]} 15. Bc4 {[%clk 0:03:07.9]} 15...
a5 {[%clk 0:02:56.3]} 16. h4 {[%clk 0:02:59.6]} 16... Bh6 {[%clk 0:02:54.7]} 17.
Ncb4 {[%clk 0:02:56.4]} 17... Bd7 {[%clk 0:02:46.4]} 18. Nxe7+ {[%clk
0:02:57.3]} 18... Qxe7 {[%clk 0:02:48.3]} 19. Nd5 {[%clk 0:02:59.1]} 19... Qd8
{[%clk 0:02:49.6]} 20. Ra2 {[%clk 0:02:57.8]} 20... Kh8 {[%clk 0:02:49.3]} 21.
Qe2 {[%clk 0:02:50.4]} 21... Rb8 {[%clk 0:02:40]} 22. g3 {[%clk 0:02:48.4]}
22... Be6 {[%clk 0:02:13.6]} 23. O-O {[%clk 0:02:45]} 23... f5 {[%clk
0:02:12.8]} 24. exf5 {[%clk 0:02:45.9]} 24... Bxf5 {[%clk 0:02:13.9]} 25. Rfa1
{[%clk 0:02:43.6]} 25... Qd7 {[%clk 0:02:01.5]} 26. Rxa5 {[%clk 0:02:27]} 26...
Bg4 {[%clk 0:02:02]} 27. Qc2 {[%clk 0:02:28.1]} 27... Bf3 {[%clk 0:01:58.1]} 28.
Bf1 {[%clk 0:02:27.5]} 28... e4 {[%clk 0:01:49.9]} 29. Re1 {[%clk 0:02:17.1]}
29... Qf7 {[%clk 0:01:39]} 30. b4 {[%clk 0:02:14.6]} 30... Rbe8 {[%clk
0:01:27.5]} 31. Ne3 {[%clk 0:02:07.1]} 31... g5 {[%clk 0:01:03.1]} 32. hxg5
{[%clk 0:02:03]} 32... Qh5 {[%clk 0:01:03.3]} 33. Bg2 {[%clk 0:02:01.7]} 33...
Bxg5 {[%clk 0:00:58.5]} 34. Qd2 {[%clk 0:01:37.5]} 34... Rf6 {[%clk 0:00:55.8]}
35. Qd4 {[%clk 0:01:27.5]} 35... Qg6 {[%clk 0:00:33]} 36. Rxg5 {[%clk
0:01:22.7]} 36... Qxg5 {[%clk 0:00:33.2]} 37. Nd5 {[%clk 0:01:24.3]} 37... Re5
{[%clk 0:00:30.6]} 38. Nxf6 {[%clk 0:01:24.2]} 38... Qxf6 {[%clk 0:00:29.9]} 39.
Bxf3 {[%clk 0:01:24.6]} 39... Qxf3 {[%clk 0:00:24.8]} 40. Re3 {[%clk 0:01:21.1]}
40... Qf5 {[%clk 0:00:17.4]} 41. Qxd6 {[%clk 0:01:18.8]} 41... Rd5 {[%clk
0:00:18.5]} 42. Qb8+ {[%clk 0:01:19.1]} 42... Kg7 {[%clk 0:00:19.6]} 43. Kg2
{[%clk 0:01:20.1]} 43... Rd2 {[%clk 0:00:18.2]} 44. Qf4 {[%clk 0:01:20.2]} 44...
Qxf4 {[%clk 0:00:18.6]} 45. gxf4 {[%clk 0:01:22.1]} 45... Rc2 {[%clk 0:00:18.4]}
46. b5 {[%clk 0:01:22.6]} 46... Kf6 {[%clk 0:00:19.3]} 47. Rxe4 {[%clk
0:01:20.7]} 47... Rxc3 {[%clk 0:00:20.4]} 48. Rb4 {[%clk 0:01:22.4]} 48... Rc7
{[%clk 0:00:21.5]} 49. b6 {[%clk 0:01:23.6]} 49... Rb7 {[%clk 0:00:23.4]} 50.
Rb5 {[%clk 0:01:24.9]} 50... Ke6 {[%clk 0:00:21.4]} 51. f5+ {[%clk 0:01:21.4]}
51... Kf6 {[%clk 0:00:22.6]} 52. f4 {[%clk 0:01:21.2]} 52... h6 {[%clk
0:00:20.8]} 53. Kg3 {[%clk 0:01:22]} 53... Kg7 {[%clk 0:00:22.2]} 54. Kg4 {[%clk
0:01:22.4]} 54... Kf6 {[%clk 0:00:22.7]} 55. Kh5 {[%clk 0:01:23.4]} 55... Kg7
{[%clk 0:00:24.3]} 56. Kh4 {[%clk 0:01:23]} 56... Kf6 {[%clk 0:00:24.6]} 57. Kg4
{[%clk 0:01:23.9]} 57... Rg7+ {[%clk 0:00:23.1]} 58. Kh5 {[%clk 0:01:24.1]}
58... Rb7 {[%clk 0:00:25]} 59. Kxh6 {[%clk 0:01:23]} 59... Rb8 {[%clk
0:00:13.4]} 60. Kh5 {[%clk 0:01:23.1]} 60... Rh8+ {[%clk 0:00:15]} 61. Kg4
{[%clk 0:01:24.2]} 61... Rb8 {[%clk 0:00:16.3]} 62. Kf3 {[%clk 0:01:23.5]} 62...
Rb7 {[%clk 0:00:10.8]} 63. Ke4 {[%clk 0:01:24.1]} 1-0

[Event "***Titled Tuesday 3|2 Blitz"]
[Site "Chess.com"]
[Date "2017.02.07"]
[Round "7"]
[White "lucasmito"]
[Black "jb2mix"]
[Result "0-1"]
[WhiteElo "1776"]
[BlackElo "2390"]
[TimeControl "180+2"]
[EndTime "14:42:23 PST"]
[Termination "jb2mix won on time"]

1. e4 {[%clk 0:03:02]} 1... c5 {[%clk 0:02:58.3]} 2. Nf3 {[%clk 0:02:59.4]} 2...
d6 {[%clk 0:02:58.8]} 3. d4 {[%clk 0:02:58.7]} 3... cxd4 {[%clk 0:03:00.7]} 4.
Nxd4 {[%clk 0:02:58.3]} 4... Nf6 {[%clk 0:03:01.8]} 5. Nc3 {[%clk 0:02:58.4]}
5... a6 {[%clk 0:02:54.5]} 6. Be3 {[%clk 0:02:57.3]} 6... e6 {[%clk 0:02:54.9]}
7. Be2 {[%clk 0:02:53.4]} 7... Be7 {[%clk 0:02:42.1]} 8. O-O {[%clk 0:02:51.6]}
8... O-O {[%clk 0:02:40.8]} 9. f4 {[%clk 0:02:36.7]} 9... Nc6 {[%clk 0:02:31.8]}
10. Kh1 {[%clk 0:02:04.9]} 10... Nxd4 {[%clk 0:02:31.2]} 11. Qxd4 {[%clk
0:02:01.1]} 11... b5 {[%clk 0:02:30.7]} 12. Bf3 {[%clk 0:01:47.5]} 12... Bb7
{[%clk 0:02:29.1]} 13. a4 {[%clk 0:01:45.3]} 13... bxa4 {[%clk 0:01:23.8]} 14.
Rxa4 {[%clk 0:01:42]} 14... d5 {[%clk 0:01:24.7]} 15. e5 {[%clk 0:01:37.3]}
15... Nd7 {[%clk 0:01:25.3]} 16. Raa1 {[%clk 0:01:29.9]} 16... Bc5 {[%clk
0:00:58.9]} 17. Qd2 {[%clk 0:01:26.4]} 17... Bxe3 {[%clk 0:00:59.9]} 18. Qxe3
{[%clk 0:01:27.8]} 18... Nb6 {[%clk 0:01:01.6]} 19. Ne2 {[%clk 0:01:18.6]} 19...
Nc4 {[%clk 0:01:01.2]} 20. Qd4 {[%clk 0:01:15.1]} 20... Qb6 {[%clk 0:00:53.5]}
21. b3 {[%clk 0:00:46.6]} 21... Qxd4 {[%clk 0:00:52.7]} 22. Nxd4 {[%clk
0:00:48.4]} 22... Nb6 {[%clk 0:00:42.9]} 23. c4 {[%clk 0:00:42.2]} 23... Rab8
{[%clk 0:00:39.5]} 24. c5 {[%clk 0:00:41.1]} 24... Na8 {[%clk 0:00:39.6]} 25. c6
{[%clk 0:00:36]} 25... Bc8 {[%clk 0:00:41]} 26. g3 {[%clk 0:00:31.2]} 26... Nc7
{[%clk 0:00:39.9]} 27. Bh5 {[%clk 0:00:26.7]} 27... g6 {[%clk 0:00:27.3]} 28.
Be2 {[%clk 0:00:25.1]} 28... Kg7 {[%clk 0:00:27]} 29. Ra4 {[%clk 0:00:21.2]}
29... f6 {[%clk 0:00:26.4]} 30. Kg2 {[%clk 0:00:16.3]} 30... fxe5 {[%clk
0:00:26.1]} 31. fxe5 {[%clk 0:00:17.5]} 31... Rxf1 {[%clk 0:00:27.8]} 32. Kxf1
{[%clk 0:00:16.8]} 32... Rb6 {[%clk 0:00:23.5]} 33. Kg2 {[%clk 0:00:14.7]} 33...
Kf7 {[%clk 0:00:24.2]} 34. Kf2 {[%clk 0:00:13.2]} 34... Ke7 {[%clk 0:00:25.5]}
35. Ke3 {[%clk 0:00:12.2]} 35... Ne8 {[%clk 0:00:25.3]} 36. h4 {[%clk
0:00:09.6]} 36... Ng7 {[%clk 0:00:25.6]} 37. g4 {[%clk 0:00:06.6]} 37... h6
{[%clk 0:00:25.6]} 38. Kf4 {[%clk 0:00:07]} 38... Kf7 {[%clk 0:00:24.9]} 39. Bd3
{[%clk 0:00:04]} 39... Ne8 {[%clk 0:00:24.7]} 40. h5 {[%clk 0:00:04.4]} 40...
g5+ {[%clk 0:00:22.8]} 41. Kf3 {[%clk 0:00:04.9]} 41... Nc7 {[%clk 0:00:22.9]}
42. Bg6+ {[%clk 0:00:05.7]} 42... Ke7 {[%clk 0:00:24.3]} 43. Bd3 {[%clk
0:00:06]} 43... Kd8 {[%clk 0:00:23]} 44. Bg6 {[%clk 0:00:06]} 44... Na8 {[%clk
0:00:22.7]} 45. Bd3 {[%clk 0:00:06.1]} 45... Kc7 {[%clk 0:00:18.8]} 0-1

[Event "***Titled Tuesday 3|2 Blitz"]
[Site "Chess.com"]
[Date "2017.02.07"]
[Round "7"]
[White "Sanan_Sjugirov"]
[Black "Aguiar94"]
[Result "1-0"]
[WhiteElo "2661"]
[BlackElo "2465"]
[TimeControl "180+2"]
[EndTime "14:42:59 PST"]
[Termination "Sanan_Sjugirov won by resignation"]

1. d4 {[%clk 0:03:02]} 1... Nf6 {[%clk 0:03:01]} 2. Nf3 {[%clk 0:03:03.1]} 2...
c5 {[%clk 0:02:59.9]} 3. d5 {[%clk 0:03:02.6]} 3... b5 {[%clk 0:02:59.6]} 4. Bg5
{[%clk 0:03:02.8]} 4... Ne4 {[%clk 0:02:59.8]} 5. Bh4 {[%clk 0:02:44.9]} 5...
Bb7 {[%clk 0:02:51.9]} 6. e3 {[%clk 0:02:34.5]} 6... Qa5+ {[%clk 0:02:52.5]} 7.
c3 {[%clk 0:02:31.9]} 7... b4 {[%clk 0:02:53.9]} 8. c4 {[%clk 0:02:20.4]} 8...
g6 {[%clk 0:02:49.1]} 9. Nbd2 {[%clk 0:02:16.6]} 9... Nxd2 {[%clk 0:02:39.2]}
10. Qxd2 {[%clk 0:02:18.5]} 10... d6 {[%clk 0:02:35.8]} 11. Bd3 {[%clk
0:02:17.2]} 11... Bg7 {[%clk 0:02:34.8]} 12. O-O {[%clk 0:02:15.6]} 12... Qc7
{[%clk 0:02:36.1]} 13. a3 {[%clk 0:02:10.1]} 13... a5 {[%clk 0:02:32.4]} 14.
axb4 {[%clk 0:02:10.6]} 14... axb4 {[%clk 0:02:28.2]} 15. Rxa8 {[%clk
0:02:10.8]} 15... Bxa8 {[%clk 0:02:30.1]} 16. e4 {[%clk 0:02:00.9]} 16... Nd7
{[%clk 0:02:09.8]} 17. Bg5 {[%clk 0:01:54.4]} 17... Nf6 {[%clk 0:01:53.5]} 18.
Bh6 {[%clk 0:01:53.4]} 18... O-O {[%clk 0:01:53.4]} 19. Re1 {[%clk 0:01:47.9]}
19... Nd7 {[%clk 0:01:49.4]} 20. Bxg7 {[%clk 0:01:47.7]} 20... Kxg7 {[%clk
0:01:51.3]} 21. Bc2 {[%clk 0:01:30.8]} 21... Bb7 {[%clk 0:01:37.9]} 22. Ba4
{[%clk 0:01:31.5]} 22... Nb6 {[%clk 0:01:38.6]} 23. Bb5 {[%clk 0:01:31.4]} 23...
e5 {[%clk 0:01:18.8]} 24. dxe6 {[%clk 0:01:23.5]} 24... fxe6 {[%clk 0:01:20.7]}
25. Ng5 {[%clk 0:01:19.5]} 25... Qe7 {[%clk 0:01:18.6]} 26. e5 {[%clk
0:00:49.1]} 26... d5 {[%clk 0:01:18.3]} 27. cxd5 {[%clk 0:00:45.3]} 27... exd5
{[%clk 0:01:16.4]} 28. e6 {[%clk 0:00:39.2]} 28... Rf6 {[%clk 0:00:50.7]} 29.
Qe2 {[%clk 0:00:29]} 29... Bc8 {[%clk 0:00:34.6]} 30. Qe5 {[%clk 0:00:27.6]}
30... h6 {[%clk 0:00:12.6]} 31. Nh7 {[%clk 0:00:13.1]} 31... Kxh7 {[%clk
0:00:05.7]} 32. Qxf6 {[%clk 0:00:14.2]} 32... Qxf6 {[%clk 0:00:07.5]} 33. e7
{[%clk 0:00:15.7]} 33... Bf5 {[%clk 0:00:05.6]} 34. e8=Q {[%clk 0:00:15.6]}
34... h5 {[%clk 0:00:07.5]} 35. h4 {[%clk 0:00:08.2]} 35... c4 {[%clk
0:00:06.8]} 36. Re7+ {[%clk 0:00:08.4]} 36... Kh6 {[%clk 0:00:08.1]} 37. Rf7
{[%clk 0:00:09.7]} 37... Qxh4 {[%clk 0:00:08.1]} 38. Qh8+ {[%clk 0:00:08.6]}
38... Kg5 {[%clk 0:00:09.4]} 39. Qd8+ {[%clk 0:00:09.6]} 39... Kg4 {[%clk
0:00:10.8]} 40. Qxb6 {[%clk 0:00:09.5]} 40... Qg5 {[%clk 0:00:07.7]} 41. Qd4+
{[%clk 0:00:10.5]} 41... Qf4 {[%clk 0:00:08.5]} 42. f3+ {[%clk 0:00:10.2]} 42...
Kg5 {[%clk 0:00:09]} 43. Qxf4+ {[%clk 0:00:11.2]} 43... Kxf4 {[%clk 0:00:10.9]}
44. Kf2 {[%clk 0:00:12.5]} 44... Ke5 {[%clk 0:00:09.7]} 45. Rb7 {[%clk
0:00:12.3]} 45... Kd4 {[%clk 0:00:09.4]} 46. Ba4 {[%clk 0:00:12.6]} 46... b3
{[%clk 0:00:09.4]} 47. Ke1 {[%clk 0:00:11.3]} 47... Ke3 {[%clk 0:00:09.6]} 48.
Re7+ {[%clk 0:00:10.9]} 48... Kd3 {[%clk 0:00:10.1]} 49. Re2 {[%clk 0:00:11]}
49... d4 {[%clk 0:00:10.4]} 50. Bb5 {[%clk 0:00:11.7]} 50... h4 {[%clk
0:00:07.2]} 51. Rd2+ {[%clk 0:00:12.8]} 51... Ke3 {[%clk 0:00:08.5]} 52. Bxc4
{[%clk 0:00:14.7]} 52... d3 {[%clk 0:00:08.4]} 53. Bxb3 {[%clk 0:00:16]} 53...
Kf4 {[%clk 0:00:08.4]} 54. Bd5 {[%clk 0:00:16.8]} 54... h3 {[%clk 0:00:08]} 55.
gxh3 {[%clk 0:00:17.6]} 55... Kg3 {[%clk 0:00:09.9]} 56. Be4 {[%clk 0:00:18.5]}
1-0